bitfinex/quotes_ETHUSD_20240926
["timestamp","ask_amount","ask_price","bid_price","bid_amount"]
[1727313368702,7.76356,2576.2,2575.7,0.7809]
[1727313369178,3.67246996,2576.1,2575.7,0.7809]
[1727313370017,3.67246996,2576.3,2575.8,0.04526604]
[1727313370194,7.55401996,2576.3,2575.8,0.04526604]
[1727313371202,0.7777,2576.6,2575.8,4.4020511]
[1727313371203,7.55375996,2576.5,2575.8,4.4020511]
[1727313371413,3.88129,2576.5,2575.9,0.7701]
[1727313371920,7.55375996,2576.5,2576.0,0.04526604]
[1727313372285,3.33649734,2577.4,2576.0,0.04526604]
[1727313372286,3.88011,2577.3,2576.5,3.88113]
[1727313372484,3.67246996,2577.3,2576.6,0.8091]
[1727313372790,3.67246996,2576.9,2576.6,0.8091]
[1727313372994,3.67246996,2576.9,2576.7,0.04487335]
[1727313372995,4.248117,2576.8,2576.7,0.04487335]
[1727313373307,4.248117,2576.8,2576.0,8.2715]
[1727313373308,4.03971696,2576.8,2576.0,8.2715]
[1727313373620,3.67246996,2576.4,2576.0,8.2715]
[1727313373820,11.43540996,2576.4,2576.0,0.8315]
[1727313374035,7.55392996,2576.4,2576.0,0.8315]
[1727313374329,3.88118,2576.6,2576.0,0.8315]
[1727313374931,11.43485996,2576.6,2576.0,0.8315]
[1727313375082,1.52268957,2576.5,2576.0,0.8315]
[1727313375283,5.40404957,2576.5,2576.0,0.8315]
[1727313375530,1.52268957,2576.5,2576.0,0.8315]
[1727313376010,5.40399957,2576.5,2576.0,0.8315]
[1727313376214,1.52268957,2576.5,2576.0,0.8315]
[1727313376429,7.55364996,2576.6,2576.0,0.8315]
[1727313376588,3.88118,2576.6,2576.0,0.8315]
[1727313376791,7.55331996,2576.8,2576.1,3.88174]
[1727313377186,3.88085,2576.8,2576.2,0.8331]
[1727313377393,3.88051,2577.0,2576.4,3.88135]
[1727313377709,3.88022,2577.2,2576.5,4.71432]
[1727313377916,7.76049,2577.2,2576.5,4.71432]
[1727313378113,5.023516,2577.2,2576.5,4.71432]
[1727313378318,1.143296,2577.2,2576.5,0.8331]
[1727313378495,3.87973,2577.5,2576.8,3.88065]
[1727313378695,3.87973,2577.5,2576.9,0.7932]
[1727313379008,3.87989,2577.4,2576.9,0.7932]
[1727313379214,3.67246996,2577.2,2576.9,0.7932]
[1727313379727,3.88012,2577.3,2576.9,0.7932]
[1727313380325,11.43239996,2577.4,2576.9,0.7932]
[1727313380629,3.88005,2577.3,2576.9,0.7932]
[1727313381139,3.67246996,2577.4,2576.9,0.7932]
[1727313381294,3.88034,2577.1,2576.9,0.7932]
[1727313381488,3.88048,2577.0,2576.9,0.7932]
[1727313381694,3.88048,2577.0,2576.0,7.44]
[1727313381695,3.88065,2576.9,2576.3,0.7666]
[1727313381892,3.88123,2576.5,2576.3,0.7666]
[1727313382201,3.88102,2576.7,2576.3,0.7666]
[1727313382202,7.76203,2576.7,2576.3,0.7666]
[1727313382395,3.88101,2576.7,2576.3,0.7666]
[1727313382733,3.88132,2576.5,2576.3,0.7666]
[1727313382921,3.67246996,2576.6,2576.3,0.7666]
[1727313383117,3.88113,2576.6,2576.3,0.7666]
[1727313383318,3.88138,2576.4,2576.3,0.7666]
[1727313383503,7.55359996,2576.6,2576.3,0.7666]
[1727313383703,3.88123,2576.5,2576.3,0.7666]
[1727313383905,3.88123,2576.5,2575.8,3.88218]
[1727313383906,3.67246996,2576.4,2575.8,0.8108]
[1727313384231,3.67246996,2576.4,2575.6,7.4772746]
[1727313384232,3.88238,2575.8,2575.6,0.0372746]
[1727313384531,7.55489996,2575.7,2575.6,0.0372746]
[1727313385248,13.04661796,2575.7,2575.6,0.0372746]
[1727313387954,12.49661796,2575.7,2575.6,0.0372746]
[1727313389445,3.88205,2576.0,2575.6,0.0372746]
[1727313389818,7.55409996,2576.3,2575.7,0.0400426]
[1727313390204,3.88148,2576.4,2575.7,0.0400426]
[1727313390463,3.88148,2576.4,2575.8,0.7971]
[1727313390615,3.8809,2576.8,2575.8,0.7971]
[1727313390812,3.8809,2576.8,2575.9,3.92342256]
[1727313391134,7.76116,2577.0,2576.2,0.8044]
[1727313391513,7.76116,2577.0,2576.3,0.04094269]
[1727313391853,3.8806,2577.0,2576.3,0.04094269]
[1727313392028,3.8806,2577.0,2576.3,0.51365396]
[1727313392225,3.8806,2577.0,2576.3,4.39518396]
[1727313392430,3.88009,2577.3,2576.5,3.88113]
[1727313392757,3.88009,2577.3,2576.7,0.8044]
[1727313392940,3.87975,2577.5,2576.7,4.68526]
[1727313393455,4.69508,2577.9,2576.8,0.04034894]
[1727313393641,2.82227452,2578.3,2577.4,0.8044]
[1727313393642,4.69449,2578.3,2577.4,0.8044]
[1727313393846,4.69449,2578.3,2577.5,3.87971]
[1727313393847,0.469449,2578.2,2577.5,3.87971]
[1727313394054,4.348239,2578.2,2577.4,0.8044]
[1727313394254,4.348239,2578.2,2577.6,0.04018619]
[1727313394575,0.469449,2578.2,2577.7,0.0383483]
[1727313394867,0.469449,2578.2,2577.5,3.8797]
[1727313395181,3.469449,2578.2,2577.6,0.0383483]
[1727313395532,7.348119,2578.2,2577.6,0.0383483]
[1727313395934,3.87885,2578.1,2577.6,0.0383483]
[1727313396154,7.348119,2578.2,2577.4,4.68425]
[1727313396395,3.87842,2578.4,2577.7,0.82017519]
[1727313396563,3.87822,2578.5,2577.7,4.66162]
[1727313396768,3.87812,2578.6,2577.8,3.91715867]
[1727313396978,7.75633,2578.6,2577.8,3.91715867]
[1727313397147,7.75633,2578.6,2577.9,4.6612]
[1727313397148,3.87812,2578.6,2577.9,4.6612]
[1727313397533,3.87847,2578.4,2578.0,0.03789867]
[1727313397738,4.52401272,2578.5,2578.0,0.03789867]
[1727313397739,3.87854,2578.3,2578.0,0.03789867]
[1727313398176,3.87813,2578.6,2578.0,0.03789867]
[1727313398340,3.87813,2578.6,2577.9,0.7822]
[1727313398341,3.87827,2578.5,2577.9,0.7822]
[1727313398542,3.87827,2578.5,2578.1,0.03765957]
[1727313398740,3.87841,2578.4,2577.9,0.7822]
[1727313398946,3.87827,2578.5,2578.2,0.03765957]
[1727313399282,0.42698105,2578.4,2577.9,0.7822]
[1727313399459,0.42698105,2578.4,2578.3,0.03765957]
[1727313399661,0.42698105,2578.4,2577.9,0.7822]
[1727313400076,0.42698105,2578.4,2578.0,0.03765957]
[1727313400965,3.87827,2578.5,2578.0,0.03765957]
[1727313402560,3.9152546,2578.7,2578.1,0.7532]
[1727313402990,3.9152546,2578.7,2578.2,0.03765957]
[1727313403561,7.7932846,2578.7,2578.2,0.03765957]
[1727313403760,0.0372746,2578.7,2578.2,0.03765957]
[1727313404178,0.0372746,2578.7,2578.2,0.50463353]
[1727313404549,0.0372746,2578.7,2578.2,0.03765957]
[1727313404750,0.0372746,2578.7,2578.3,3.87842]
[1727313404957,0.0372746,2578.7,2578.4,0.7692]
[1727313405382,0.0372746,2578.7,2578.5,0.03735359]
[1727313406371,0.0372746,2578.7,2578.5,3.91543359]
[1727313406729,0.0372746,2578.7,2578.6,5.13237133]
[1727313406856,0.0372746,2578.7,2578.6,5.1323625]
[1727313407057,0.0372746,2578.7,2578.6,5.16836688]
[1727313407602,0.0372746,2578.7,2578.6,5.0908185]
[1727313409291,0.0372746,2578.7,2578.6,1.2127485]
[1727313410098,0.0372746,2578.7,2578.6,5.0908185]
[1727313410265,3.9142246,2579.4,2578.6,5.0908185]
[1727313410266,0.0372746,2579.4,2578.6,3.5050945]
[1727313410472,0.0372746,2579.4,2579.1,0.8126]
[1727313411059,0.0372746,2579.4,2579.2,0.03600514]
[1727313413963,0.0372746,2579.4,2579.3,3.87702]
[1727313414162,0.0372746,2579.4,2579.3,0.03534577]
[1727313414396,0.0372746,2579.4,2579.1,4.68991]
[1727313414601,0.0372746,2579.4,2579.3,0.03527889]
[1727313414899,0.0372746,2579.4,2579.2,0.468991]
[1727313414900,0.0372746,2579.4,2578.8,0.827]
[1727313415061,0.0372746,2579.4,2579.3,0.03527889]
[1727313415062,3.9142146,2579.4,2579.3,0.03527889]
[1727313415263,3.9142146,2579.4,2578.8,4.70471]
[1727313415765,3.9142146,2579.4,2578.9,0.03527889]
[1727313415964,3.9142146,2579.4,2578.9,0.59896676]
[1727313416164,3.87705,2579.3,2578.9,0.59896676]
[1727313416603,3.9142146,2579.4,2578.9,0.59896676]
[1727313417017,3.87702,2579.3,2578.9,0.59896676]
[1727313417309,3.9142146,2579.4,2578.9,0.59896676]
[1727313417718,3.9142146,2579.4,2579.0,0.53037068]
[1727313417908,3.9142146,2579.4,2579.0,0.56489461]
[1727313418678,0.0372746,2579.4,2579.0,0.56489461]
[1727313419079,0.0372746,2579.4,2579.0,4.44234461]
[1727313420074,0.0372746,2579.4,2579.0,0.56489461]
[1727313420503,0.0372746,2579.4,2579.1,0.44423746]
[1727313420709,0.0372746,2579.4,2579.2,0.0345908]
[1727313420907,3.9141546,2579.4,2579.2,0.0345908]
[1727313421113,3.87702,2579.3,2579.2,0.0345908]
[1727313421315,3.9141546,2579.4,2578.8,4.70476]
[1727313421316,7.7911046,2579.4,2578.8,4.70476]
[1727313421476,3.87702,2579.3,2579.2,0.0345908]
[1727313421677,3.87702,2579.3,2578.9,0.56016499]
[1727313422133,3.87702,2579.3,2578.4,23.55827]
[1727313422134,3.87777,2578.8,2578.3,0.7621]
[1727313422384,3.87748,2579.0,2578.3,4.64053]
[1727313422385,3.66865885,2578.9,2578.3,4.64053]
[1727313422644,3.87751,2579.0,2578.4,4.730271]
[1727313423208,3.87772,2578.9,2578.4,0.851911]
[1727313423405,3.87751,2579.0,2578.4,4.730201]
[1727313423794,7.75508,2579.0,2578.4,4.730201]
[1727313424015,3.87751,2579.0,2578.5,0.5492301]
[1727313424214,3.87762,2578.9,2578.5,0.5492301]
[1727313424633,3.87762,2578.9,2578.5,0.54834514]
[1727313424801,3.87751,2579.0,2578.3,0.7621]
[1727313424802,4.51475603,2578.8,2578.3,0.7621]
[1727313425001,3.87821,2578.6,2578.0,4.70631]
[1727313425198,3.87824,2578.5,2578.0,4.70631]
[1727313425510,3.87824,2578.5,2578.0,6.308858]
[1727313425910,3.8791,2578.0,2577.3,0.8297]
[1727313426142,8.39385603,2578.0,2577.4,3.87977]
[1727313426345,0.821,2578.1,2577.5,3.87962]
[1727313426496,3.8787,2578.2,2577.6,3.87948]
[1727313427092,4.51475603,2578.3,2577.5,0.470947]
[1727313427306,0.783,2578.4,2577.3,0.8297]
[1727313427307,3.87922,2577.9,2577.3,0.8297]
[1727313427529,3.87895,2578.1,2577.4,3.87987]
[1727313427899,3.87907,2578.0,2577.4,3.87987]
[1727313428218,3.87907,2578.0,2577.4,4.738834]
[1727313428998,3.87858,2578.3,2577.4,0.858964]
[1727313429193,0.783,2578.4,2577.7,3.87932]
[1727313429398,0.783,2578.4,2577.3,0.90729856]
[1727313429399,7.68637,2578.7,2578.0,3.87895]
[1727313429702,8.5644,2578.7,2578.0,3.87895]
[1727313430008,3.87797,2578.7,2578.1,0.03521478]
[1727313430203,3.87797,2578.7,2578.1,3.91394478]
[1727313430596,4.51475603,2578.6,2578.1,0.03521478]
[1727313430835,3.87847,2578.4,2577.9,0.8172]
[1727313431038,8.39327603,2578.3,2578.2,0.0348801]
[1727313431342,8.39327603,2578.3,2577.6,0.8145]
[1727313431343,3.87906,2578.0,2577.6,0.8145]
[1727313431701,3.87906,2578.0,2577.4,3.87985]
[1727313432097,3.87914,2577.9,2577.4,3.87985]
[1727313432297,3.87917,2577.9,2577.3,4.7096]
[1727313432608,7.75839,2577.9,2577.3,1.30056]
[1727313432835,3.8793,2577.8,2577.3,0.8296]
[1727313433028,3.87973,2577.5,2577.0,8.1995]
[1727313433227,3.87973,2577.5,2577.0,0.7595]
[1727313433403,0.8394486,2577.5,2577.0,0.7595]
[1727313433600,3.88014,2577.3,2576.7,0.7628]
[1727313433796,3.88014,2577.3,2576.6,15.20199]
[1727313433797,3.88042,2577.1,2576.6,7.44]
[1727313434040,3.88042,2577.1,2576.4,0.0372746]
[1727313434041,3.88074,2576.9,2576.4,0.0372746]
[1727313434543,8.39512603,2577.1,2576.4,3.9186246]
[1727313434840,3.88064,2576.9,2576.4,0.0372746]
[1727313435622,3.88079,2576.8,2576.4,0.0372746]
[1727313435826,3.88064,2576.9,2576.4,0.0372746]
[1727313436198,9.99857863,2577.1,2576.4,0.0372746]
[1727313436394,3.88088,2576.8,2576.4,0.42915406]
[1727313436646,3.88088,2576.8,2576.4,0.0372746]
[1727313436647,4.51475603,2576.8,2576.4,0.0372746]
[1727313437043,4.51475603,2576.8,2576.5,0.03552631]
[1727313437532,3.88093,2576.7,2576.5,0.03552631]
[1727313437903,3.88123,2576.5,2576.4,0.0372746]
[1727313438101,11.39598603,2576.5,2576.4,0.0372746]
[1727313438330,3.8395686,2576.6,2576.4,0.0372746]
[1727313438732,3.8395686,2576.6,2576.5,0.03727703]
[1727313439059,7.7206486,2576.6,2576.5,0.03727703]
[1727313439624,6.88123,2576.5,2576.4,0.0372746]
[1727313439928,8.11833786,2576.5,2576.4,0.0372746]
[1727313440661,8.11833786,2576.5,2576.4,0.07455163]
[1727313440823,8.11833786,2576.5,2576.4,0.0372746]
[1727313441025,8.11833786,2576.5,2576.4,0.07455163]
[1727313441862,8.11833786,2576.5,2576.4,0.0372746]
[1727313442788,13.96539389,2576.5,2576.4,0.0372746]
[1727313442947,13.96539389,2576.5,2575.2,0.7678]
[1727313442948,3.88243,2575.7,2575.2,0.7678]
[1727313443269,9.17934603,2575.8,2575.6,0.07330906]
[1727313443563,3.88229,2575.8,2575.6,0.0372746]
[1727313443862,3.88229,2575.8,2575.7,0.03658028]
[1727313444057,3.0,2576.0,2575.7,0.03658028]
[1727313444357,3.88214,2575.9,2575.8,0.03658028]
[1727313444566,3.88214,2575.9,2575.6,0.0372746]
[1727313444864,3.88214,2575.9,2575.8,0.03681017]
[1727313445022,3.88214,2575.9,2575.6,0.0372746]
[1727313445226,6.88198,2576.0,2575.8,0.03681017]
[1727313445430,3.88213,2575.9,2575.6,0.0372746]
[1727313446022,3.0,2576.0,2575.7,0.03681017]
[1727313446225,3.88187,2576.1,2575.7,0.03681017]
[1727313447125,7.76382,2576.1,2575.7,0.03681017]
[1727313447325,7.7638,2576.1,2575.7,0.03681017]
[1727313447824,3.88187,2576.1,2575.7,0.03681017]
[1727313448277,3.88187,2576.1,2575.8,0.8201]
[1727313448559,3.88187,2576.1,2575.9,0.03752837]
[1727313448560,7.76384,2576.1,2575.9,0.03752837]
[1727313448759,3.88198,2576.0,2575.9,0.03752837]
[1727313448959,9.47301003,2576.1,2575.6,0.0372746]
[1727313449167,3.88222,2575.9,2575.6,0.0372746]
[1727313449341,7.76445,2575.9,2575.6,0.0372746]
[1727313449537,3.88222,2575.9,2575.6,0.0372746]
[1727313449876,3.88243,2575.7,2575.6,0.0372746]
[1727313457069,6.88243,2575.7,2575.6,0.0372746]
[1727313458341,6.88243,2575.7,2575.6,0.0743544]
[1727313458741,3.0,2575.7,2575.6,0.0743544]
[1727313459086,3.0,2575.9,2575.6,0.0743544]
[1727313459235,3.0,2576.1,2575.6,0.0743544]
[1727313459685,6.88187,2576.1,2575.6,0.0743544]
[1727313459839,3.0,2576.3,2575.6,0.0743544]
[1727313460036,3.88185,2576.1,2575.6,0.0743544]
[1727313460261,3.88185,2576.1,2575.7,0.7593]
[1727313460682,3.8816,2576.3,2575.8,0.03686899]
[1727313461172,3.8816,2576.3,2575.8,3.91913899]
[1727313462291,3.88101,2576.7,2576.2,3.88166]
[1727313462506,7.76207,2576.7,2576.3,0.7881]
[1727313462654,3.88101,2576.7,2576.3,0.82455707]
[1727313462849,3.88112,2576.6,2576.3,0.82455707]
[1727313463149,3.88101,2576.7,2576.3,0.03645707]
[1727313463150,7.76272,2576.5,2576.3,0.03645707]
[1727313463373,7.76272,2576.5,2576.0,0.7881]
[1727313463583,3.88154,2576.3,2576.0,1.255115]
[1727313463749,3.88154,2576.3,2576.0,0.7881]
[1727313464364,3.88135,2576.5,2576.0,0.7881]
[1727313465073,3.881,2576.7,2576.0,0.7881]
[1727313465074,3.88111,2576.6,2576.0,4.66997]
[1727313465256,3.88111,2576.6,2576.0,5.525166]
[1727313465457,3.881,2576.7,2576.1,7.76357]
[1727313465789,3.881,2576.7,2576.1,3.88175]
[1727313466898,3.88069,2576.9,2576.3,3.88143]
[1727313467192,7.7614,2576.9,2576.3,3.88143]
[1727313467495,3.88069,2576.9,2576.3,7.76286]
[1727313467788,3.88069,2576.9,2576.4,0.856816]
[1727313467989,6.8805,2577.0,2576.5,0.8053]
[1727313468577,3.88067,2576.9,2576.5,0.8053]
[1727313468780,3.88079,2576.8,2576.5,0.8053]
[1727313469190,3.88094,2576.7,2576.5,0.8053]
[1727313469908,3.88072,2576.9,2576.5,0.8053]
[1727313470106,3.88095,2576.7,2576.6,0.03496308]
[1727313470404,7.55420788,2577.1,2576.6,0.03496308]
[1727313471005,7.55415788,2577.1,2576.6,3.91603308]
[1727313471369,7.55415788,2577.1,2576.6,0.03496308]
[1727313471566,11.43457788,2577.1,2576.6,0.03496308]
[1727313472193,7.76079,2577.1,2576.6,0.46743103]
[1727313472494,4.64841,2577.7,2577.0,3.88038]
[1727313472700,4.64841,2577.7,2576.6,0.54505286]
[1727313472701,3.87951,2577.7,2577.2,3.88009]
[1727313472868,3.87951,2577.7,2577.2,4.348629]
[1727313473065,3.87917,2577.9,2577.4,3.87983]
[1727313473318,3.67378788,2578.0,2577.3,0.83995681]
[1727313473616,7.55307788,2577.8,2577.4,0.03465681]
[1727313473772,7.55284788,2578.0,2577.4,3.91439681]
[1727313473971,3.87917,2577.9,2577.5,0.8053]
[1727313474197,7.55314788,2577.8,2577.5,0.8053]
[1727313474513,7.75874,2577.8,2577.6,0.03465681]
[1727313474705,3.87936,2577.8,2577.6,0.03465681]
[1727313475012,4.63433479,2578.0,2577.6,0.03465681]
[1727313475178,3.87905,2578.0,2577.6,0.03465681]
[1727313475385,7.75812,2578.0,2577.6,0.03465681]
[1727313475719,3.87905,2578.0,2577.6,0.03465681]
[1727313476684,3.87905,2578.0,2577.5,0.8053]
[1727313477211,3.87875,2578.2,2577.5,4.68493]
[1727313477212,3.87897,2578.1,2577.5,4.68493]
[1727313477376,3.87886,2578.1,2577.6,3.87955]
[1727313477574,3.87886,2578.1,2577.5,1.661771]
[1727313477774,3.87899,2578.0,2577.5,1.661771]
[1727313477975,3.87899,2578.0,2577.5,0.8053]
[1727313477976,3.87928,2577.8,2577.5,0.8053]
[1727313478974,3.87928,2577.8,2577.1,0.7762]
[1727313479177,3.87957,2577.6,2577.1,0.7762]
[1727313480284,3.87957,2577.6,2577.1,4.65643]
[1727313480489,7.75877,2577.8,2577.2,3.88017]
[1727313480809,3.87947,2577.7,2577.1,2.37388]
[1727313481016,3.87936,2577.8,2577.1,2.37388]
[1727313481017,3.87958,2577.6,2577.1,2.37388]
[1727313481202,3.87958,2577.6,2577.1,6.2542]
[1727313481525,3.87958,2577.6,2577.1,0.7762]
[1727313481734,3.8799,2577.4,2576.8,0.7545]
[1727313481875,3.87964,2577.6,2576.9,3.88058]
[1727313482080,3.87975,2577.5,2576.9,3.88058]
[1727313482285,3.87975,2577.5,2577.0,3.88047]
[1727313482513,3.87991,2577.4,2576.8,4.63516]
[1727313482717,3.88008,2577.3,2576.8,4.63516]
[1727313483016,3.88046,2577.1,2576.8,0.7545]
[1727313483219,3.8802,2577.2,2576.4,8.2407]
[1727313483220,3.88079,2576.8,2576.4,8.2407]
[1727313483375,3.88079,2576.8,2576.4,0.8007]
[1727313483580,3.88079,2576.8,2576.1,3.88178]
[1727313483581,3.88108,2576.6,2576.1,0.8007]
[1727313484408,3.88139,2576.4,2576.1,0.8007]
[1727313484622,3.88139,2576.4,2575.9,7.44]
[1727313484821,3.88169,2576.2,2575.9,7.44]
[1727313485125,3.88169,2576.2,2575.8,0.8007]
[1727313485126,3.88192,2576.1,2575.8,0.8007]
[1727313485345,3.88169,2576.2,2575.6,0.0372746]
[1727313485346,3.88201,2576.0,2575.6,0.0372746]
[1727313485928,3.88231,2575.8,2575.6,0.0372746]
[1727313486077,4.64004,2575.9,2575.6,0.0372746]
[1727313486281,3.88191,2576.1,2575.6,0.0372746]
[1727313486603,5.18597785,2576.1,2575.6,0.0372746]
[1727313486802,3.88199,2576.0,2575.6,0.0372746]
[1727313486981,3.88199,2576.0,2575.7,0.03410212]
[1727313487988,3.88228,2575.8,2575.7,0.03410212]
[1727313490411,3.88199,2576.0,2575.7,0.03410212]
[1727313490924,3.88228,2575.8,2575.7,0.03410212]
[1727313493124,3.88199,2576.0,2575.7,0.83150212]
[1727313493632,3.88163,2576.3,2575.7,1.30664879]
[1727313493831,3.88163,2576.3,2575.7,5.18899879]
[1727313494035,3.88144,2576.4,2575.7,1.30664879]
[1727313494335,3.88144,2576.4,2575.9,3.88213]
[1727313494692,3.88144,2576.4,2576.0,0.03612177]
[1727313495208,3.88144,2576.4,2575.8,3.88224]
[1727313495441,3.88116,2576.6,2576.2,0.7997]
[1727313495628,3.88086,2576.8,2576.3,0.47176518]
[1727313495847,3.88086,2576.8,2576.3,0.50759002]
[1727313496439,0.8018,2577.1,2576.3,0.50759002]
[1727313496632,3.88103,2576.7,2576.3,0.03582484]
[1727313497263,0.8018,2577.1,2576.4,0.03552798]
[1727313497264,3.88056,2577.0,2576.4,0.03552798]
[1727313497461,3.0,2577.1,2576.7,0.7766]
[1727313497755,3.88052,2577.0,2576.7,0.7766]
[1727313497959,3.0,2577.1,2576.7,0.7766]
[1727313498168,3.88027,2577.2,2576.7,0.7766]
[1727313498169,3.88027,2577.2,2576.8,0.03506834]
[1727313498362,3.87993,2577.4,2576.8,4.38509417]
[1727313499060,3.87993,2577.4,2576.9,3.88062]
[1727313499275,3.87966,2577.6,2577.0,3.88045]
[1727313499438,3.87936,2577.8,2577.2,3.88017]
[1727313499759,3.87904,2578.0,2577.4,3.87987]
[1727313500062,3.87872,2578.2,2577.4,3.87987]
[1727313500063,7.75751,2578.2,2577.6,0.7726]
[1727313500235,4.71850485,2578.2,2577.6,0.7726]
[1727313500656,4.71850485,2578.2,2577.7,0.03427392]
[1727313500846,3.87906,2578.0,2577.7,0.03427392]
[1727313501245,3.87915,2577.9,2577.7,0.03427392]
[1727313501447,3.87906,2578.0,2577.7,0.03427392]
[1727313501745,3.87906,2578.0,2577.4,0.7577]
[1727313502261,3.87906,2578.0,2577.5,0.05077949]
[1727313502563,3.87906,2578.0,2577.4,4.63745]
[1727313503055,3.87932,2577.8,2577.4,0.7577]
[1727313503259,3.87906,2578.0,2577.4,0.7577]
[1727313503437,3.87906,2578.0,2577.4,4.63757]
[1727313503637,3.87906,2578.0,2577.4,0.7577]
[1727313504666,3.87914,2577.9,2577.4,0.7577]
[1727313504870,3.8793,2577.8,2577.4,0.7577]
[1727313505163,3.87943,2577.7,2577.4,0.7577]
[1727313505571,3.87983,2577.5,2577.1,0.3915279]
[1727313505787,3.87952,2577.7,2577.1,0.7871]
[1727313506343,3.87983,2577.5,2577.1,0.7871]
[1727313506682,3.88002,2577.4,2577.1,0.7871]
[1727313507745,3.87983,2577.5,2577.1,0.7871]
[1727313508371,8.535603,2577.5,2577.1,0.7871]
[1727313508572,3.8799,2577.4,2577.1,0.7871]
[1727313509775,3.88003,2577.3,2576.8,8.2654]
[1727313509971,3.8799,2577.4,2576.8,8.2654]
[1727313510156,3.88018,2577.2,2576.8,8.2654]
[1727313511495,3.88018,2577.2,2576.8,0.8254]
[1727313512574,3.87995,2577.4,2576.9,3.88058]
[1727313512896,3.88005,2577.3,2576.8,4.70617]
[1727313513068,3.87967,2577.6,2577.0,3.88033]
[1727313513275,3.87967,2577.6,2577.2,0.7721]
[1727313513468,7.75936,2577.6,2577.2,0.7721]
[1727313513692,3.87967,2577.6,2577.2,0.7721]
[1727313513891,3.8798,2577.5,2577.2,0.7721]
[1727313514113,3.87946,2577.7,2577.2,0.7721]
[1727313514422,3.7593,2578.0,2577.2,0.7721]
[1727313514423,3.87914,2577.9,2577.3,3.87989]
[1727313514882,6.87905,2578.0,2577.3,3.87989]
[1727313515086,6.87905,2578.0,2577.5,3.87969]
[1727313515284,6.87905,2578.0,2577.4,0.807]
[1727313515285,3.0,2578.0,2577.4,0.807]
[1727313515518,3.87938,2577.8,2577.4,0.807]
[1727313516111,3.6710187,2577.9,2577.4,4.68675]
[1727313516319,3.87874,2578.2,2577.4,4.68675]
[1727313516320,3.87874,2578.2,2577.4,0.807]
[1727313516479,3.879,2578.0,2577.5,3.87963]
[1727313516796,3.87884,2578.1,2577.6,3.87956]
[1727313516999,0.7511,2578.9,2577.8,0.755]
[1727313517200,4.51730381,2579.2,2577.6,0.07758675]
[1727313517201,3.9151946,2578.7,2578.2,3.87865]
[1727313517509,7.75632,2578.6,2578.0,4.63388]
[1727313517817,3.87856,2578.3,2578.0,0.755]
[1727313518560,7.75721,2578.3,2577.7,0.8121]
[1727313519252,3.87867,2578.2,2577.7,0.8121]
[1727313519619,3.87883,2578.1,2577.7,0.8121]
[1727313520350,3.87907,2578.0,2577.7,0.8121]
[1727313520855,0.775723,2578.2,2577.7,0.8121]
[1727313521044,4.654423,2578.2,2577.7,0.8121]
[1727313521363,3.87921,2577.9,2577.7,0.8121]
[1727313521667,0.775723,2578.2,2577.4,0.8083]
[1727313521852,3.87859,2578.3,2577.8,4.64346]
[1727313522058,4.65755946,2578.6,2577.8,0.7642]
[1727313522229,6.87824,2578.5,2578.0,3.87885]
[1727313522434,3.0,2578.5,2578.0,3.87885]
[1727313522775,3.87786,2578.8,2578.1,0.7642]
[1727313523129,3.87786,2578.8,2578.2,3.87859]
[1727313523445,3.9152046,2578.7,2578.2,3.87859]
[1727313523853,0.0372746,2578.7,2578.2,3.87859]
[1727313524268,3.9151946,2578.7,2578.2,3.87859]
[1727313524444,3.9151946,2578.7,2578.2,4.730761]
[1727313524645,0.0372746,2578.7,2578.2,4.730761]
[1727313524956,3.87808,2578.6,2578.2,0.852171]
[1727313525511,0.0372746,2578.7,2578.2,0.852171]
[1727313525512,0.0372746,2578.7,2578.4,0.7642]
[1727313525631,0.0372746,2578.7,2578.5,0.7642]
[1727313525827,0.0372746,2578.7,2578.6,0.85982759]
[1727313526874,0.0372746,2578.7,2578.5,0.7642]
[1727313528769,0.0372746,2578.7,2578.5,4.6423]
[1727313529154,0.0372746,2578.7,2578.5,0.7642]
[1727313533866,3.9152746,2578.7,2578.3,0.8173]
[1727313534654,0.0372746,2578.7,2578.3,4.69581]
[1727313534848,0.0372746,2578.7,2578.3,1.974736]
[1727313535085,0.0372746,2578.7,2578.3,5.853176]
[1727313536085,0.0372746,2578.7,2578.3,1.974736]
[1727313536290,0.0372746,2578.7,2578.3,5.853256]
[1727313536454,0.0372746,2578.7,2578.3,1.974736]
[1727313536878,0.0372746,2578.7,2578.3,5.853166]
[1727313537074,0.0372746,2578.7,2578.4,4.8515316]
[1727313537288,0.0372746,2578.7,2578.5,3.87809]
[1727313537877,0.0372746,2578.7,2578.3,0.8173]
[1727313538083,0.8153746,2578.7,2578.0,0.801]
[1727313538307,3.8788,2578.2,2577.6,3.87945]
[1727313538517,3.8788,2578.2,2577.6,0.7649]
[1727313538518,3.67056071,2578.1,2577.6,0.7649]
[1727313538880,7.54946071,2578.1,2577.6,0.7649]
[1727313539421,3.87899,2578.0,2577.6,0.7649]
[1727313539630,4.81337578,2578.1,2577.6,0.7649]
[1727313539631,8.69220578,2578.1,2577.6,0.7649]
[1727313539782,12.57111578,2578.1,2577.6,0.7649]
[1727313539981,7.54939071,2578.1,2577.6,0.7649]
[1727313540422,7.54939071,2578.1,2577.6,4.64436]
[1727313540634,3.8786,2578.3,2577.6,4.64436]
[1727313540635,3.8786,2578.3,2577.7,3.87932]
[1727313540783,3.87854,2578.3,2577.8,3.87927]
[1727313541189,7.75715,2578.3,2577.7,3.87941]
[1727313541490,0.8148,2578.4,2577.7,3.87941]
[1727313541798,3.8786,2578.3,2577.7,4.343841]
[1727313541996,7.54916071,2578.3,2577.7,3.87941]
[1727313542411,7.54916071,2578.3,2577.7,7.75875]
[1727313543198,7.54916071,2578.3,2577.7,3.87934]
[1727313543429,3.8786,2578.3,2577.8,3.87923]
[1727313543588,7.54886071,2578.5,2577.9,3.8791]
[1727313543788,8.38895424,2578.5,2577.9,3.8791]
[1727313544021,3.87843,2578.4,2577.9,3.8791]
[1727313544434,3.8783,2578.5,2578.1,0.7542]